bitfinex-derivatives/quotes_BTCF0:USTF0_20210111
["timestamp","ask_amount","ask_price","bid_price","bid_amount"]
[1610383700906,0.0985,30737.0,30687.0,1.0]
[1610383701106,0.0985,30737.0,30688.0,0.098]
[1610383701706,0.0954,30737.0,30688.0,0.098]
[1610383709014,0.08647,30738.0,30700.0,1.0]
[1610383709215,4.06495441,30761.0,30700.0,1.0]
[1610383709415,0.0985,30761.0,30700.0,1.0]
[1610383709616,3.96561268,30767.0,30700.0,1.0]
[1610383710214,0.0978,30766.0,30700.0,1.0]
[1610383710614,0.19289,30766.0,30700.0,1.0]
[1610383711015,0.19289,30766.0,30695.0,0.0985]
[1610383711016,0.19289,30766.0,30704.0,1.0]
[1610383711616,0.09509,30766.0,30704.0,1.0]
[1610383712017,0.08649,30766.0,30704.0,1.0]
[1610383712216,0.08649,30766.0,30705.0,0.0987]
[1610383712816,9e-05,30766.0,30705.0,0.0987]
[1610383713026,9e-05,30766.0,30750.0,1.0]
[1610383713420,3.99559892,30795.0,30750.0,1.0]
[1610383713818,4.00144744,30803.0,30750.0,1.0]
[1610383714218,4.01165323,30812.0,30751.0,0.0989]
[1610383714418,0.0961,30811.0,30751.0,0.0989]
[1610383714622,0.18128,30811.0,30751.0,0.0989]
[1610383715022,0.18128,30811.0,30809.0,1.0]
[1610383715224,0.16828,30811.0,30809.0,0.06445]
[1610383715424,0.0985,30824.0,30759.0,0.10149]
[1610383716224,0.0985,30824.0,30760.0,0.0968]
[1610383716425,0.0985,30824.0,30761.0,0.0966]
[1610383716926,0.0923,30827.0,30761.0,0.0966]
[1610383717126,0.0963,30833.0,30761.0,0.0966]
[1610383717928,0.0278,30838.0,30761.0,0.0966]
[1610383718129,0.0957,30842.0,30761.0,0.0966]
[1610383718633,0.0806,30842.0,30761.0,0.0966]
[1610383719031,4.1070292,30858.0,30759.0,0.10149]
[1610383719230,4.1070292,30858.0,30762.0,0.2736]
[1610383719933,8.39037994,30866.0,30762.0,0.2736]
[1610383720132,4.10052629,30866.0,30762.0,0.2736]
[1610383720532,4.09704499,30875.0,30780.0,0.0152]
[1610383721934,4.05667501,30883.0,30780.0,0.0152]
[1610383723435,4.05667501,30883.0,30866.0,0.02]
[1610383723835,4.03378863,30889.0,30780.0,0.0152]
[1610383725744,4.06930394,30894.0,30780.0,0.0152]
[1610383726636,4.80914376,30956.0,30780.0,0.0152]
[1610383726637,4.06273352,30907.0,30780.0,0.0152]
[1610383727337,4.06273352,30907.0,30781.0,0.2778]
[1610383727742,4.05734616,30914.0,30781.0,0.2778]
[1610383728852,4.05734616,30914.0,30780.0,0.0152]
[1610383729039,4.12576616,30914.0,30780.0,0.0152]
[1610383729637,1.0,30861.0,30780.0,0.0152]
[1610383729838,1.07871,30861.0,30780.0,0.0152]
[1610383730038,1.07871,30861.0,30760.0,0.2911]
[1610383730439,1.07871,30861.0,30644.0,0.3179]
[1610383730839,1.5,30860.0,30657.0,0.271]
[1610383731039,1.5,30860.0,30658.0,0.1556]
[1610383731241,1.5,30860.0,30658.0,0.23635]
[1610383731641,1.0,30803.0,30658.0,0.08075]
[1610383731840,1.09707,30803.0,30658.0,0.08075]
[1610383732240,1.09707,30803.0,30659.0,0.2955]
[1610383733342,1.09707,30803.0,30660.0,0.1556]
[1610383733541,0.09707,30803.0,30660.0,0.1556]
[1610383733746,0.09707,30803.0,30659.0,0.2955]
[1610383734142,0.09707,30803.0,30659.0,0.30254545]
[1610383734845,0.09707,30803.0,30660.0,0.4735]
[1610383735057,0.09707,30803.0,30660.0,0.1556]
[1610383735647,1.0,30784.0,30660.0,0.1556]
[1610383735864,1.0,30784.0,30660.0,0.4735]
[1610383735865,1.1041,30784.0,30660.0,0.4735]
[1610383736044,1.1041,30784.0,30660.0,1.9735]
[1610383736662,1.1041,30784.0,30661.0,0.2729]
[1610383736848,1.1041,30784.0,30662.0,1.5]
[1610383737057,1.0,30784.0,30662.0,1.5]
[1610383737547,0.10286,30791.0,30663.0,0.2937]
[1610383737749,0.10286,30791.0,30664.0,1.5]
[1610383737948,0.10286,30791.0,30780.0,0.38419718]
[1610383738148,4.26147952,30877.0,30780.0,0.38419718]
[1610383738349,4.26147952,30877.0,30780.0,0.45847718]
[1610383738948,4.63202684,30908.0,30780.0,0.45847718]
[1610383738949,4.26448497,30885.0,30780.0,0.45847718]
[1610383739348,4.26209315,30892.0,30780.0,0.45847718]
[1610383739547,1.0,30911.0,30780.0,0.45847718]
[1610383739749,4.26416899,30913.0,30780.0,0.45847718]
[1610383740150,4.26416899,30913.0,30781.0,0.2917]
[1610383740351,4.26218223,30922.0,30781.0,0.2917]
[1610383741551,4.26862823,30929.0,30781.0,0.2917]
[1610383742756,1.5,30928.0,30781.0,0.2917]
[1610383743164,0.0652817,30887.0,30780.0,0.38419718]
[1610383743355,0.1496117,30887.0,30780.0,0.12966718]
[1610383743555,1.0,30812.0,30780.0,0.12966718]
[1610383743766,1.10671,30812.0,30780.0,0.12966718]
[1610383743957,1.10671,30812.0,30668.0,0.1556]
[1610383744360,1.10671,30812.0,30667.0,0.2824]
[1610383744758,0.02,30668.0,30667.0,0.2824]
[1610383744957,0.10697,30735.0,30668.0,0.4535]
[1610383745159,0.10697,30735.0,30668.0,0.88069]
[1610383745357,1.10671,30812.0,30668.0,0.56279]
[1610383745557,1.0,30800.0,30668.0,0.56279]
[1610383745960,1.08208,30800.0,30669.0,0.3179]
[1610383747661,0.08208,30800.0,30670.0,1.5]
[1610383747863,0.08208,30800.0,30669.0,0.3179]
[1610383748262,0.09603,30824.0,30669.0,0.795]
[1610383750062,0.028,30780.0,30669.0,0.795]
[1610383750264,0.11704,30780.0,30669.0,0.795]
[1610383752183,0.028,30780.0,30669.0,0.795]
[1610383752574,0.028,30780.0,30670.0,1.5]
[1610383753570,0.028,30780.0,30669.0,0.795]
[1610383754272,0.10935,30780.0,30669.0,0.795]
[1610383756073,0.10935,30780.0,30670.0,1.5]
[1610383756273,0.10935,30780.0,30670.0,1.8001]
[1610383756576,0.10935,30780.0,30670.0,1.5]
[1610383756872,0.10935,30780.0,30671.0,0.2815]
[1610383761683,0.028,30780.0,30671.0,0.2815]
[1610383761881,0.028,30780.0,30672.0,1.5]
[1610383762481,0.028,30780.0,30673.0,0.2791]
[1610383762682,0.028,30780.0,30674.0,1.5]
[1610383763381,0.028,30780.0,30675.0,0.2922]
[1610383763582,0.028,30780.0,30676.0,1.5]
[1610383763784,0.028,30780.0,30700.0,1.0]
[1610383763983,0.028,30780.0,30701.0,1.5]
[1610383764184,0.028,30780.0,30702.0,0.4463]
[1610383764382,0.028,30780.0,30703.0,1.5]
[1610383765084,0.028,30780.0,30704.0,0.2948]
[1610383765283,0.028,30780.0,30705.0,1.5]
[1610383766084,0.028,30780.0,30706.0,0.2872]
[1610383766286,0.028,30780.0,30706.0,1.7872]
[1610383766487,0.028,30780.0,30706.0,1.5]
[1610383766988,0.028,30780.0,30707.0,0.2723]
[1610383767188,0.028,30780.0,30708.0,1.5]
[1610383767790,0.028,30780.0,30709.0,0.2707]
[1610383767990,0.028,30780.0,30710.0,1.5]
[1610383768589,0.028,30780.0,30711.0,0.2756]
[1610383768791,0.028,30780.0,30712.0,1.5]
[1610383769695,0.028,30780.0,30713.0,0.2798]
[1610383769894,0.028,30780.0,30714.0,1.5]
[1610383770096,0.028,30780.0,30714.0,1.58129]
[1610383770496,0.028,30780.0,30715.0,0.2799]
[1610383770696,0.028,30780.0,30716.0,1.5]
[1610383771497,0.028,30780.0,30717.0,0.2795]
[1610383773502,0.028,30780.0,30730.0,1.0]
[1610383773703,0.028,30780.0,30730.0,1.09778]
[1610383774613,0.028,30780.0,30731.0,0.287]
[1610383775606,0.028,30780.0,30730.0,1.09778]
[1610383775805,0.13981,30780.0,30730.0,1.09778]
[1610383787226,0.13981,30780.0,30730.0,2.09778]
[1610383788826,4.3068,30779.0,30730.0,2.09778]
[1610383789728,1.5,30778.0,30730.0,2.09778]
[1610383791043,1.5,30778.0,30730.0,2.07778]
[1610383792335,4.47474163,30754.0,30730.0,1.98]
[1610383792533,1.5,30753.0,30730.0,1.98]
[1610383793534,1.5,30753.0,30730.0,1.97704545]
[1610383794134,1.5,30753.0,30730.0,0.92588545]
[1610383794334,1.5,30753.0,30711.0,4.9133]
[1610383794635,1.5,30753.0,30700.0,1.0]
[1610383795837,1.5,30753.0,30730.0,0.3979402]
[1610383796037,4.56194163,30754.0,30700.0,1.0]
[1610383796440,4.56194163,30754.0,30700.0,1.08292]
[1610383797643,6.06194163,30754.0,30700.0,1.08292]
[1610383797943,6.06194163,30754.0,30700.0,1.0]
[1610383798544,3.7293,30710.0,30700.0,1.0]
[1610383798745,3.82392,30710.0,30700.0,1.0]
[1610383799745,0.09462,30710.0,30700.0,1.0]
[1610383799949,4.2053,30738.0,30700.0,1.0]
[1610383800146,4.2053,30738.0,30700.0,1.08296]
[1610383802549,1.5,30737.0,30700.0,1.0]
[1610383802951,1.6112,30737.0,30700.0,1.0]
[1610383804249,0.1112,30737.0,30700.0,1.0]
[1610383804849,4.0473,30707.0,30700.0,1.0]
[1610383805052,4.14463,30707.0,30700.0,1.0]
[1610383805249,5.64463,30707.0,30700.0,1.0]
[1610383806752,1.5,30706.0,30700.0,1.0]
[1610383806950,4.14463,30707.0,30700.0,1.0]
[1610383807250,4.14463,30707.0,30700.0,0.69501]
[1610383807750,5.2881,30701.0,30700.0,0.69501]
[1610383807951,6.7881,30701.0,30700.0,0.33448]
[1610383808351,5.2881,30701.0,30700.0,0.33448]
[1610383810351,5.2881,30701.0,30700.0,0.08246]
[1610383812053,6.7881,30701.0,30700.0,0.08246]
[1610383812453,5.2881,30701.0,30700.0,0.08246]
[1610383813053,6.7881,30701.0,30700.0,0.08246]
[1610383813253,5.2881,30701.0,30700.0,0.08246]
[1610383813654,6.2881,30701.0,30700.0,0.08246]
[1610383815054,7.7881,30701.0,30700.0,0.08246]
[1610383815454,6.2881,30701.0,30700.0,0.08246]
[1610383815657,5.2881,30701.0,30700.0,0.08246]
[1610383817357,6.7881,30701.0,30700.0,0.08246]
[1610383818060,6.7881,30701.0,30650.0,0.08482]
[1610383818659,5.2881,30701.0,30650.0,0.08482]
[1610383818857,0.2895,30700.0,30650.0,0.08482]
[1610383819259,0.3695,30700.0,30650.0,0.08482]
[1610383821361,0.09643041,30700.0,30650.0,0.08482]
[1610383821566,0.01643041,30700.0,30650.0,0.08482]
[1610383822983,0.11748041,30700.0,30650.0,0.08482]
[1610383824265,0.01643041,30700.0,30662.0,0.09641424]
[1610383826572,4.3381,30685.0,30662.0,0.09641424]
[1610383826797,4.6116,30716.0,30662.0,0.09641424]
[1610383830673,4.6116,30716.0,30668.0,0.03]
[1610383830870,4.35855,30716.0,30668.0,0.03]
[1610383831072,4.37591843,30810.0,30668.0,0.03]
[1610383831472,5.70766178,30948.0,30669.0,0.2768]
[1610383831473,4.38141933,30817.0,30669.0,0.2768]
[1610383831673,4.38141933,30817.0,30670.0,1.5]
[1610383831875,0.2934,30816.0,30670.0,1.5]
[1610383832073,0.2934,30816.0,30671.0,0.2966]
[1610383832273,4.37946269,30824.0,30672.0,1.5]
[1610383832673,4.37946269,30824.0,30673.0,0.2946]
[1610383832873,0.2546,30846.0,30674.0,1.5]
[1610383832874,0.2728,30823.0,30674.0,1.5]
[1610383833277,0.2728,30823.0,30675.0,0.2712]
[1610383833474,0.2728,30823.0,30676.0,1.5]
[1610383833674,0.2728,30823.0,30676.0,1.61087]
[1610383833875,0.2728,30823.0,30677.0,0.2809]
[1610383834075,0.2728,30823.0,30678.0,1.5]
[1610383834483,0.2728,30823.0,30679.0,0.2968]
[1610383834674,0.2728,30823.0,30680.0,1.5]
[1610383835476,0.2728,30823.0,30681.0,0.2848]
[1610383835678,0.2728,30823.0,30681.0,1.7848]
[1610383835880,0.2728,30823.0,30681.0,1.5]
[1610383836088,5.399,30862.0,30741.0,5.2866]
[1610383836281,5.399,30862.0,30741.0,5.39429]
[1610383836492,0.2912,30861.0,30741.0,5.39429]
[1610383836681,0.37807,30861.0,30741.0,5.39429]
[1610383837084,1.5,30860.0,30741.0,5.39429]
[1610383837486,0.08687,30861.0,30741.0,5.39429]
[1610383837884,0.273,30860.0,30741.0,5.39429]
[1610383838284,0.273,30860.0,30742.0,1.5]
[1610383838882,0.273,30860.0,30743.0,0.2774]
[1610383839085,0.273,30860.0,30744.0,1.5]
[1610383839480,0.273,30860.0,30745.0,0.2866]
[1610383839686,0.273,30860.0,30746.0,1.5]
[1610383840084,0.273,30860.0,30747.0,0.2806]
[1610383840280,0.273,30860.0,30748.0,1.5]
[1610383840481,0.273,30860.0,30748.0,1.60207]
[1610383840682,0.273,30860.0,30749.0,0.273]
[1610383840882,0.273,30860.0,30750.0,1.5]
[1610383841283,0.273,30860.0,30751.0,0.2994]
[1610383841492,0.273,30860.0,30752.0,1.5]
[1610383842083,0.273,30860.0,30753.0,0.2771]
[1610383842285,0.273,30860.0,30754.0,1.5]
[1610383842886,0.273,30860.0,30755.0,0.2767]
[1610383843085,0.273,30860.0,30756.0,1.5]
[1610383843884,0.273,30860.0,30757.0,0.2713]
[1610383844085,0.273,30860.0,30757.0,1.7713]
[1610383844285,0.273,30860.0,30757.0,1.5]
[1610383844484,0.273,30860.0,30758.0,0.277]
[1610383844685,0.273,30860.0,30759.0,1.5]
[1610383845086,0.273,30860.0,30760.0,0.2771]
[1610383845285,0.273,30860.0,30761.0,1.5]
[1610383845485,0.273,30860.0,30772.0,5.3017]
[1610383845685,0.273,30860.0,30772.0,5.40113]
[1610383845887,0.273,30860.0,30773.0,1.5]
[1610383846085,0.273,30860.0,30774.0,0.2772]
[1610383846286,0.273,30860.0,30775.0,1.5]
[1610383850689,3.9411,30876.0,30775.0,1.5]
[1610383851089,3.9411,30876.0,30776.0,1.5]
[1610383851289,3.9411,30876.0,30779.0,0.03]
[1610383851492,3.9411,30876.0,30779.0,0.10765]
[1610383851689,3.9411,30876.0,30780.0,1.5]
[1610383852090,3.9211,30876.0,30781.0,0.2825]
[1610383852316,1.0,30971.0,30782.0,1.5]
[1610383852531,5.3857,30962.0,30876.0,0.02]
[1610383852692,5.4672,30962.0,30876.0,0.02]
[1610383853692,5.3857,30962.0,30876.0,0.02]
[1610383855193,0.09725,30992.0,30907.0,4.8322]
[1610383855392,0.09725,30992.0,30907.0,4.90131]
[1610383857199,0.09725,30992.0,30935.0,5.1288]
[1610383860100,0.0893,31000.0,30935.0,5.1288]
[1610383860298,0.07468,31007.0,30935.0,5.1288]
[1610383860500,0.101,31015.0,30935.0,5.1288]
[1610383860699,4.0802,31044.0,30935.0,5.1288]
[1610383860898,4.0802,31044.0,30936.0,0.2829]
[1610383864404,0.2774,31156.0,30936.0,0.2829]
[1610383864604,1.0,31172.0,30936.0,0.2829]
[1610383865106,0.286,31155.0,30936.0,0.2829]
[1610383867202,1.0,31182.0,30936.0,0.2829]
[1610383867602,0.2931,31099.0,30936.0,0.2829]
[1610383867801,0.40223,31099.0,30936.0,0.2829]
[1610383868802,0.10913,31099.0,30937.0,1.5]
[1610383869408,0.10913,31099.0,30938.0,0.2823]
[1610383869605,0.2722,31165.0,30939.0,1.5]
[1610383869802,0.2722,31165.0,30939.0,1.60038]
[1610383870204,0.2722,31165.0,30940.0,0.2776]
[1610383870405,0.2722,31165.0,30941.0,1.5]
[1610383870609,0.2722,31165.0,30940.0,0.2776]
[1610383870809,0.10571,31111.0,30940.0,0.2776]
[1610383871609,0.2741,31110.0,30941.0,0.2827]
[1610383871810,0.07781,31104.0,30941.0,0.2827]
[1610383872213,0.2709,31215.0,30942.0,0.2716]
[1610383872811,0.2709,31215.0,30943.0,1.5]
[1610383873211,0.2709,31215.0,30944.0,0.2727]
[1610383873412,0.2709,31215.0,30945.0,1.5]
[1610383874013,0.2709,31215.0,30946.0,0.2992]
[1610383874214,0.2709,31215.0,30947.0,1.5]
[1610383874613,4.04912,31100.0,30948.0,0.2925]
[1610383874817,4.04912,31100.0,30949.0,1.5]
[1610383875014,3.80602,31100.0,30949.0,1.5]
[1610383875413,3.80602,31100.0,30950.0,0.2926]
[1610383875614,3.80602,31100.0,30951.0,1.5]
[1610383876014,3.80602,31100.0,30952.0,0.275]
[1610383876215,3.80602,31100.0,30953.0,1.5]
[1610383876414,3.80602,31100.0,30953.0,1.57208]
[1610383876814,3.80602,31100.0,30954.0,0.2944]
[1610383877018,3.50048,31100.0,30955.0,1.5]
[1610383877218,3.18891,31100.0,30955.0,1.5]
[1610383877418,2.87674,31100.0,30956.0,0.2724]
[1610383877621,2.05948,31100.0,30957.0,1.5]
[1610383877851,1.43526959,31100.0,30957.0,1.5]
[1610383878024,0.07454817,31225.0,30957.0,1.5]
[1610383878222,0.07454817,31225.0,30958.0,0.2831]
[1610383878421,0.07454817,31225.0,30959.0,1.5]
[1610383878622,0.07454817,31225.0,30960.0,1.62179522]
[1610383878826,0.07454817,31225.0,30961.0,1.7979]
[1610383879020,0.07454817,31225.0,30964.0,1.62353238]
[1610383879217,0.07454817,31225.0,30965.0,1.5]
[1610383879417,0.07454817,31225.0,30966.0,0.2912]
[1610383879651,0.07454817,31225.0,30967.0,1.5]
[1610383879819,0.07454817,31225.0,30967.0,1.59854]
[1610383880019,0.07454817,31225.0,30968.0,0.2984]
[1610383880218,0.07454817,31225.0,30969.0,1.5]
[1610383880919,0.07454817,31225.0,30970.0,0.2935]
[1610383881723,0.07454817,31225.0,30970.0,1.7935]
[1610383882123,0.07454817,31225.0,30970.0,1.5]
[1610383882323,0.07454817,31225.0,30971.0,0.2945]
[1610383882526,0.07454817,31225.0,30972.0,1.5]
[1610383883125,0.07454817,31225.0,30973.0,0.2725]
[1610383883324,0.07454817,31225.0,30974.0,1.5]
[1610383883525,0.07454817,31225.0,30974.0,1.59115]
[1610383883725,0.07454817,31225.0,30975.0,0.298]
[1610383883925,0.07454817,31225.0,30976.0,1.5]
[1610383884526,0.07454817,31225.0,30977.0,0.2854]
[1610383884725,0.07454817,31225.0,30978.0,1.5]
[1610383885129,0.07454817,31225.0,30979.0,0.2808]
[1610383885327,0.07454817,31225.0,30980.0,1.5]
[1610383886028,0.07454817,31225.0,30981.0,0.4331]
[1610383886227,0.07454817,31225.0,30982.0,1.5]
[1610383886626,0.07454817,31225.0,30983.0,0.2902]
[1610383886828,0.07454817,31225.0,30984.0,1.5]
[1610383887128,0.07454817,31225.0,30991.0,1.6373575]
[1610383887330,0.07454817,31225.0,30992.0,1.5]
[1610383887530,0.07454817,31225.0,30993.0,0.5963]
[1610383887732,0.07454817,31225.0,30994.0,1.5]
[1610383887931,0.07454817,31225.0,30995.0,1.92087714]
[1610383888132,0.07454817,31225.0,30996.0,1.5]
[1610383888532,0.07454817,31225.0,30997.0,0.2909]
[1610383888732,0.07454817,31225.0,30998.0,1.5]
[1610383888931,0.07454817,31225.0,30998.0,1.59741]
[1610383889333,0.07454817,31225.0,30999.0,0.2788]
[1610383889533,0.07454817,31225.0,31000.0,1.5]
[1610383889933,0.07454817,31225.0,31001.0,0.271]
[1610383890134,0.07454817,31225.0,31002.0,1.5]
[1610383890535,0.07454817,31225.0,31003.0,0.2882]
[1610383890734,0.07454817,31225.0,31004.0,1.5]
[1610383891135,0.07454817,31225.0,31005.0,0.2908]
[1610383891335,0.07454817,31225.0,31006.0,1.5]
[1610383892037,0.07454817,31225.0,31007.0,1.88800423]
[1610383892238,0.07454817,31225.0,31008.0,1.5]
[1610383892437,0.07454817,31225.0,31008.0,1.7942]
[1610383892637,0.07454817,31225.0,31102.0,4.6348]
[1610383892841,0.07454817,31225.0,31103.0,0.2876]
[1610383895343,0.07454817,31225.0,31104.0,0.1556]
[1610383897343,0.07454817,31225.0,31103.0,0.2876]
[1610383897543,0.16318817,31225.0,31103.0,0.2876]
[1610383897945,0.16318817,31225.0,31104.0,0.1556]
[1610383898244,0.2923,31224.0,31103.0,0.2876]
[1610383898448,0.2923,31224.0,31104.0,0.1556]
[1610383900266,0.2923,31224.0,31104.0,0.4735]
[1610383900647,0.2923,31224.0,31105.0,0.2945]
[1610383901051,0.16318817,31225.0,31105.0,0.2945]
[1610383901850,0.07454817,31225.0,31105.0,0.2945]
[1610383902050,0.07454817,31225.0,31148.0,4.884]
[1610383902253,0.07454817,31225.0,31149.0,0.1556]
[1610383902454,0.07454817,31225.0,31149.0,0.4419]
[1610383902654,0.07454817,31225.0,31149.0,0.2863]
[1610383904254,0.07454817,31225.0,31150.0,0.1556]
[1610383904456,0.07454817,31225.0,31149.0,0.2863]
[1610383904654,0.15436817,31225.0,31149.0,0.4419]
[1610383905658,0.15436817,31225.0,31149.0,0.2863]
[1610383906156,0.15436817,31225.0,31148.0,4.99382]
[1610383907560,0.15436817,31225.0,31148.0,0.10982]
[1610383907770,0.15436817,31225.0,31133.0,4.1906]
[1610383911462,5.3388,31219.0,31123.0,4.2898]
[1610383913368,5.3388,31219.0,31124.0,0.287]
[1610383913565,5.3388,31219.0,31124.0,0.35986]
[1610383918369,5.3388,31219.0,31124.0,0.07286]
[1610383918572,5.3388,31219.0,31123.0,4.2898]
[1610383919369,5.3388,31219.0,31124.0,0.2891]
[1610383919569,5.3388,31219.0,31124.0,0.39844]
[1610383920771,0.592,31219.0,31124.0,0.39844]
[1610383920971,0.07454817,31225.0,31124.0,0.39844]
[1610383930181,0.07454817,31225.0,31131.0,4.2261]
[1610383930380,0.07454817,31225.0,31131.0,4.30048]
[1610383930779,0.07454817,31225.0,31132.0,0.2962]
[1610383934787,1.5,31261.0,31132.0,0.2962]
[1610383935589,1.0,31257.0,31132.0,0.2962]
[1610383935788,1.5,31256.0,31132.0,0.2962]
[1610383935988,1.0,31257.0,31132.0,0.2962]
[1610383937593,4.22341021,31264.0,31132.0,0.2962]
[1610383937993,4.24344972,31266.0,31132.0,0.2962]
[1610383938793,1.5,31265.0,31132.0,0.2962]
[1610383939400,1.57499,31265.0,31132.0,0.2962]
[1610383939594,1.0,31263.0,31132.0,0.2962]
[1610383939794,1.5,31262.0,31132.0,0.2962]
[1610383940395,1.0,31263.0,31132.0,0.2962]
[1610383940595,0.2732,31261.0,31132.0,0.2962]
[1610383941194,0.2732,31261.0,31131.0,0.07438]
[1610383941393,0.2732,31261.0,31132.0,0.2821]
[1610383941594,0.2732,31261.0,31132.0,0.37597]
[1610383943496,4.24362758,31260.0,31132.0,0.37597]
[1610383943696,0.2732,31261.0,31132.0,0.37597]
[1610383948603,1.5,31260.0,31132.0,0.37597]
[1610383949003,5.0889,31252.0,31133.0,3.6187]
[1610383949204,1.5,31251.0,31133.0,3.6187]
[1610383950403,1.61212,31251.0,31133.0,3.6187]
[1610383951004,0.2927,31250.0,31133.0,3.6187]
[1610383951205,1.5,31249.0,31133.0,3.6187]
[1610383951405,1.5,31249.0,31134.0,0.2727]
[1610383951605,1.0,31209.0,31134.0,0.2727]
[1610383952606,1.0,31209.0,31154.0,0.0207]
[1610383952806,1.0,31209.0,31154.0,0.103]
[1610383953606,1.5,31224.0,31154.0,0.103]
[1610383954207,1.5,31223.0,31154.0,0.103]
[1610383954409,1.7997,31223.0,31154.0,0.103]
[1610383954808,1.7997,31223.0,31154.0,0.0207]
[1610383957611,1.0,31166.0,31154.0,0.0207]
[1610383958412,1.5,31165.0,31154.0,0.0207]
[1610383959814,1.5,31164.0,31154.0,0.0207]
[1610383960015,1.5,31164.0,31154.0,0.25779756]
[1610383960415,0.0966,31163.0,31154.0,0.25779756]
[1610383960816,1.5966,31163.0,31106.0,4.2787]
[1610383961617,4.05384895,31148.0,31106.0,4.2787]
[1610383961816,1.5,31147.0,31106.0,4.2787]
[1610383962221,1.5,31147.0,31007.0,0.2732]
[1610383962819,1.67624,31147.0,31007.0,0.2732]
[1610383963018,0.095,31146.0,31007.0,0.2732]
[1610383963618,1.0,31126.0,31007.0,0.2732]
[1610383963818,1.5,31125.0,31007.0,0.2732]
[1610383964717,1.5953,31125.0,31007.0,0.2732]
[1610383964920,0.0952,31124.0,31007.0,0.2732]
[1610383965518,4.00777482,31094.0,30977.0,0.4735]
[1610383965718,2.5,31093.0,30977.0,0.4735]
[1610383965918,2.5,31093.0,30977.0,0.3179]
[1610383966619,2.5956,31093.0,30977.0,0.3179]
[1610383967032,2.5956,31093.0,30947.0,0.2832]
[1610383967218,4.0651,31053.0,30955.0,3.8566]
[1610383967442,4.14701,31053.0,30955.0,3.8566]
[1610383968020,4.0651,31053.0,30956.0,1.5]
[1610383968220,1.0,31088.0,30975.0,4.1337]
[1610383968422,0.0964,31087.0,30976.0,0.1556]
[1610383968645,1.0,31088.0,30976.0,0.1556]
[1610383968821,1.0,31088.0,30977.0,0.2865]
[1610383969221,1.0,31088.0,31053.0,0.02]
[1610383969421,1.0,31088.0,31053.0,0.12084]
[1610383969621,4.9318,31092.0,31053.0,0.12084]
[1610383970321,0.0961,31091.0,31053.0,0.12084]
[1610383970722,1.5961,31091.0,31053.0,0.12084]
[1610383972521,1.5961,31091.0,31053.0,0.02]
[1610383973722,2.5961,31091.0,31053.0,0.02]
[1610383974922,2.5961,31091.0,30977.0,0.2865]
[1610383975121,1.0,31069.0,30975.0,0.08238]
[1610383975324,1.5,31068.0,30956.0,0.07482]
[1610383975521,1.5,31068.0,30922.0,0.2773]
[1610383976122,1.10166,31069.0,30922.0,0.2773]
[1610383976323,1.10166,31069.0,30922.0,0.36501]
[1610383976523,1.0,31069.0,30922.0,0.08771]
[1610383976923,1.0,31069.0,30923.0,0.2921]
[1610383977123,1.5,31093.0,30923.0,0.2921]
[1610383978923,1.0,31102.0,30923.0,0.2921]
[1610383979122,4.05442201,31158.0,30924.0,1.5]
[1610383979323,0.097,31100.0,30924.0,1.5]
[1610383979523,0.0958,31110.0,30924.0,1.5]
[1610383979724,0.0958,31110.0,30925.0,0.2713]
[1610383979924,0.0958,31110.0,30926.0,1.5]
[1610383980328,0.0958,31110.0,30929.0,1.74714211]
[1610383980524,1.5,31145.0,30930.0,1.5]
[1610383980724,1.5,31145.0,30935.0,1.74084074]
[1610383980923,1.5,31145.0,30936.0,1.5]
[1610383981123,1.5,31145.0,30936.0,3.58958165]
[1610383981324,0.0957,31164.0,30936.0,3.31558165]
[1610383981525,0.0957,31164.0,30940.0,1.73091037]
[1610383981725,0.0957,31164.0,30941.0,1.5]
[1610383981925,0.0957,31164.0,30946.0,1.72932913]
[1610383982125,0.0957,31164.0,30947.0,2.5849]
[1610383982324,0.0957,31164.0,30950.0,1.7258334]
[1610383982525,0.0957,31164.0,30951.0,1.5]
[1610383982725,0.0957,31164.0,30953.0,1.72245082]
[1610383982927,0.0957,31164.0,30954.0,1.5]
[1610383983125,0.0957,31164.0,30954.0,3.22219744]
[1610383983326,0.0957,31164.0,30955.0,0.2725]
[1610383983527,1.5957,31164.0,30955.0,0.2725]
[1610383983726,1.5957,31164.0,30956.0,1.5]
[1610383984127,1.5957,31164.0,30957.0,0.2957]
[1610383984327,1.5957,31164.0,30958.0,1.5]
[1610383984728,1.5957,31164.0,30959.0,0.2886]
[1610383984928,1.5957,31164.0,30960.0,1.6556]
[1610383985128,1.5957,31164.0,30960.0,1.72506]
[1610383985328,1.5957,31164.0,30961.0,0.2803]
[1610383985530,1.5957,31164.0,30962.0,1.71470188]
[1610383985929,1.5957,31164.0,30963.0,0.2993]
[1610383986530,5.0926,31051.0,30993.0,5.2947]
[1610383986730,3.83222,31051.0,30986.0,4.1595]
[1610383986929,3.83222,31051.0,30963.0,0.2993]
[1610383986930,3.1569,31051.0,30963.0,0.2993]
[1610383987129,2.75287389,31051.0,31050.0,0.13632608]
[1610383987330,2.75287389,31051.0,31050.0,0.22423608]